bitfinex/quotes_BTCUSD_20241101
["timestamp","ask_amount","ask_price","bid_price","bid_amount"]
[1730468926200,0.05369355,70769.0,70768.0,0.47228368]
[1730468926443,0.05369355,70769.0,70768.0,0.39218368]
[1730468926905,0.05369355,70769.0,70768.0,0.14645525]
[1730468927112,0.19499755,70769.0,70768.0,0.14287487]
[1730468927409,0.19499755,70769.0,70768.0,0.14687487]
[1730468927410,0.05369355,70769.0,70768.0,0.14687487]
[1730468927625,0.05369355,70769.0,70768.0,0.28418087]
[1730468927852,0.05369355,70769.0,70768.0,0.2912524]
[1730468928072,0.05369355,70769.0,70768.0,0.2952524]
[1730468928289,0.05451655,70769.0,70768.0,0.2912524]
[1730468928498,0.05451655,70769.0,70768.0,0.28818087]
[1730468928954,0.05451655,70769.0,70768.0,0.28418087]
[1730468929378,0.05451655,70769.0,70768.0,0.28818087]
[1730468929607,0.05451655,70769.0,70768.0,0.29218087]
[1730468929844,0.02269751,70769.0,70768.0,0.29525176]
[1730468930063,0.02269751,70769.0,70768.0,0.30352627]
[1730468930291,0.02269751,70769.0,70768.0,0.29952627]
[1730468930502,0.02269751,70769.0,70768.0,0.28818051]
[1730468930748,0.02269751,70769.0,70768.0,0.29525133]
[1730468930973,0.02269751,70769.0,70768.0,0.29645566]
[1730468931236,0.02269751,70769.0,70768.0,0.14687451]
[1730468931480,0.02269751,70769.0,70768.0,0.00841926]
[1730468931716,0.16400151,70769.0,70768.0,0.01241926]
[1730468932156,0.16400151,70769.0,70768.0,0.00841926]
[1730468933039,0.16400151,70769.0,70768.0,0.01241926]
[1730468933476,0.16400151,70769.0,70768.0,0.00841926]
[1730468933706,0.16400151,70769.0,70768.0,0.00441926]
[1730468934143,0.16400151,70769.0,70768.0,0.00841926]
[1730468934862,0.16400151,70769.0,70768.0,0.008]
[1730468935148,0.16400151,70769.0,70768.0,0.01242086]
[1730468935358,0.16400151,70769.0,70768.0,0.004]
[1730468935769,0.16400151,70769.0,70768.0,0.00942079]
[1730468936221,0.16400151,70769.0,70768.0,0.005]
[1730468936222,0.47403279,70769.0,70768.0,0.005]
[1730468936465,0.57403279,70769.0,70768.0,0.005]
[1730468936733,0.57403279,70769.0,70741.0,0.2126227]
[1730468936734,0.141338,70752.0,70743.0,0.00707303]
[1730468936955,0.141338,70752.0,70741.0,0.2126227]
[1730468936956,0.141338,70752.0,70751.0,0.21704456]
[1730468937212,0.141338,70752.0,70751.0,0.2126227]
[1730468937451,0.17157603,70754.0,70741.0,0.2126227]
[1730468937452,0.141358,70742.0,70741.0,0.2126227]
[1730468937870,0.141358,70742.0,70741.0,0.21704504]
[1730468938084,0.141358,70742.0,70741.0,0.00442234]
[1730468938314,0.282699,70747.0,70733.0,0.2126227]
[1730468938567,0.141372,70736.0,70733.0,0.2126227]
[1730468938779,0.141372,70735.0,70734.0,0.00442232]
[1730468939005,0.141372,70735.0,70734.0,0.01149785]
[1730468939237,0.282713,70744.0,70734.0,0.00442232]
[1730468939468,0.282713,70743.0,70735.0,0.00442224]
[1730468939682,0.141371,70736.0,70733.0,0.00707553]
[1730468939920,0.141371,70736.0,70734.0,0.01149783]
[1730468940148,0.2126227,70766.0,70740.0,0.1]
[1730468940389,0.2126227,70758.0,70750.0,0.17157603]
[1730468940626,0.14132,70761.0,70754.0,0.141332]
[1730468940847,0.02269751,70769.0,70755.0,0.01149783]
[1730468941096,0.141317,70763.0,70758.0,0.141325]
[1730468941298,0.02269751,70769.0,70751.0,0.2126227]
[1730468941299,0.02269751,70769.0,70761.0,0.141319]
[1730468941550,0.02269751,70769.0,70759.0,0.01149783]
[1730468941551,0.02269751,70769.0,70766.0,0.141309]
[1730468941778,0.02269751,70769.0,70760.0,0.282645]
[1730468941779,0.02269751,70769.0,70767.0,0.0044223]
[1730468942032,0.02269751,70769.0,70760.0,0.282645]
[1730468942033,0.02269751,70769.0,70768.0,0.0044223]
[1730468942282,0.02269751,70769.0,70768.0,0.1457283]
[1730468942736,0.02269751,70769.0,70768.0,0.0044223]
[1730468942981,0.02269751,70769.0,70768.0,0.1528002]
[1730468943423,0.02269751,70769.0,70768.0,0.1483779]
[1730468943668,0.02269751,70769.0,70768.0,0.15279785]
[1730468944287,0.02269751,70769.0,70768.0,0.2912531]
[1730468944497,0.02269751,70769.0,70768.0,0.30355385]
[1730468944702,0.02269751,70769.0,70768.0,0.2952531]
[1730468944917,0.02269751,70769.0,70768.0,0.2982531]
[1730468945347,0.000801,70779.0,70771.0,0.2413]
[1730468945567,0.000801,70779.0,70771.0,0.58434769]
[1730468945780,0.000801,70779.0,70771.0,0.58152224]
[1730468947142,0.000801,70779.0,70771.0,0.56172542]
[1730468947362,0.000801,70779.0,70771.0,0.5919143]
[1730468947582,0.000801,70779.0,70771.0,0.59191195]
[1730468947781,0.000801,70779.0,70771.0,0.59891195]
[1730468948318,0.000801,70779.0,70771.0,0.80453465]
[1730468948509,0.000801,70779.0,70771.0,0.71411195]
[1730468948873,0.000801,70779.0,70771.0,0.78981195]
[1730468949099,0.000801,70779.0,70778.0,0.241286]
[1730468949301,0.000801,70779.0,70778.0,0.39123031]
[1730468949517,0.000801,70779.0,70778.0,0.40992778]
[1730468949729,0.000801,70779.0,70778.0,0.39953603]
[1730468949951,0.000801,70779.0,70778.0,0.39246584]
[1730468950351,0.000801,70779.0,70778.0,0.56704187]
[1730468950647,0.000801,70779.0,70778.0,0.55431728]
[1730468950848,0.000801,70779.0,70778.0,0.39545323]
[1730468951026,0.000801,70779.0,70778.0,0.39945323]
[1730468952210,0.4454263,70800.0,70778.0,0.39945323]
[1730468952458,0.16516763,70845.0,70778.0,0.39945323]
[1730468952459,0.84771505,70862.0,70859.0,0.141125]
[1730468952906,0.84771505,70862.0,70858.0,0.0811]
[1730468953111,0.84771505,70862.0,70859.0,0.17157603]
[1730468953319,0.84771505,70862.0,70844.0,0.1]
[1730468953320,0.84771505,70862.0,70856.0,0.17157603]
[1730468954289,0.282205,70871.0,70858.0,0.003]
[1730468954495,0.282205,70871.0,70856.0,0.17157603]
[1730468954496,0.282235,70863.0,70856.0,0.17157603]
[1730468954716,0.282219,70867.0,70856.0,0.17157603]
[1730468954943,0.282219,70867.0,70859.0,0.2654948]
[1730468955181,0.141213,70860.0,70859.0,0.26990941]
[1730468955391,0.27966825,70860.0,70859.0,0.26990941]
[1730468955605,0.30266825,70860.0,70859.0,0.26990941]
[1730468955831,0.30266825,70860.0,70859.0,0.2654948]
[1730468955832,0.40266825,70860.0,70859.0,0.2654948]
[1730468956034,0.16154525,70860.0,70859.0,0.26991002]
[1730468956235,0.2655848,70860.0,70859.0,0.00441522]
[1730468957368,0.2655848,70860.0,70859.0,0.00841486]
[1730468957795,0.2655848,70860.0,70859.0,0.01141486]
[1730468958051,0.2655848,70860.0,70859.0,0.00441486]
[1730468958214,0.4067078,70860.0,70859.0,0.00441486]
[1730468958409,0.4067078,70860.0,70859.0,0.01141486]
[1730468958609,0.2655848,70860.0,70859.0,0.01141486]
[1730468958816,0.2655848,70860.0,70859.0,0.00741486]
[1730468959291,0.2655848,70860.0,70859.0,0.01141486]
[1730468959495,0.2655848,70860.0,70859.0,0.00841486]
[1730468959928,0.2655848,70860.0,70859.0,0.01141486]
[1730468960214,0.4067078,70860.0,70859.0,0.00841486]
[1730468960419,0.4067078,70860.0,70859.0,0.00741486]
[1730468960875,0.2655848,70860.0,70859.0,0.00841486]
[1730468961074,0.2655848,70860.0,70859.0,0.00841497]
[1730468961278,0.4067078,70860.0,70859.0,0.00441497]
[1730468961486,0.4067078,70860.0,70859.0,0.00741497]
[1730468961676,0.2655848,70860.0,70859.0,0.01141497]
[1730468962090,0.4067078,70860.0,70859.0,0.01141497]
[1730468962495,0.4067078,70860.0,70859.0,0.007]
[1730468962773,0.54516305,70860.0,70859.0,0.007]
[1730468962980,0.56816305,70860.0,70859.0,0.007]
[1730468963808,0.56816291,70860.0,70859.0,0.004]
[1730468964025,0.023,70859.0,70842.0,0.141157]
[1730468964255,0.141146,70849.0,70842.0,0.141157]
[1730468964665,0.282282,70851.0,70837.0,0.282338]
[1730468964879,1.5,70999.0,70829.0,0.282367]
[1730468964880,0.0187656,70868.0,70867.0,0.241109]
[1730468965039,0.0187656,70868.0,70867.0,0.320109]
[1730468965370,1.0,70870.0,70869.0,0.241105]
[1730468966420,1.0,70870.0,70869.0,0.38397584]
[1730468967516,1.0,70870.0,70869.0,0.38697584]
[1730468967727,1.0,70870.0,70869.0,0.38797584]
[1730468968155,1.0,70870.0,70869.0,0.39097584]
[1730468968375,1.0,70870.0,70869.0,0.40997584]
[1730468968590,1.02147676,70870.0,70869.0,0.41397584]
[1730468969230,0.94337676,70870.0,70869.0,0.40997584]
[1730468969456,0.94337676,70870.0,70869.0,0.40556025]
[1730468969680,0.94337676,70870.0,70869.0,0.40697236]
[1730468969917,0.94337676,70870.0,70869.0,0.40997236]
[1730468970353,0.94337676,70870.0,70869.0,0.40697236]
[1730468970747,0.94337676,70870.0,70869.0,0.41397236]
[1730468970880,0.94337676,70870.0,70869.0,0.41097236]
[1730468971097,0.94337676,70870.0,70869.0,0.38397236]
[1730468971301,0.94337676,70870.0,70869.0,0.38697236]
[1730468971502,0.94337676,70870.0,70869.0,0.39097236]
[1730468972145,0.94337676,70870.0,70869.0,0.38697236]
[1730468972368,0.94295353,70870.0,70869.0,0.38697236]
[1730468972600,0.94295353,70870.0,70869.0,0.40697236]
[1730468973037,0.9425303,70870.0,70869.0,0.67546716]
[1730468973428,0.9425303,70870.0,70869.0,0.67246716]
[1730468973648,0.9425303,70870.0,70869.0,0.67546716]
[1730468973878,0.9425303,70870.0,70869.0,0.67646716]
[1730468974340,0.9425303,70870.0,70869.0,0.67546716]
[1730468974806,0.9425303,70870.0,70869.0,0.65246716]
[1730468975255,0.9425303,70870.0,70869.0,0.65646716]
[1730468975495,0.9425303,70870.0,70869.0,0.65646753]
[1730468976672,0.1,70870.0,70869.0,0.56161464]
[1730468977177,0.1,70870.0,70869.0,0.58461464]
[1730468977396,0.21165664,70893.0,70887.0,0.241069]
[1730468977605,0.21165664,70893.0,70887.0,0.24548148]
[1730468978044,0.117495,70900.0,70887.0,0.24548148]
[1730468978742,0.117495,70900.0,70887.0,0.38393673]
[1730468978947,0.117495,70900.0,70887.0,0.43593325]
[1730468979187,0.141046,70899.0,70887.0,0.44034542]
[1730468979410,0.141046,70899.0,70887.0,0.38393642]
[1730468979650,0.14105,70897.0,70887.0,0.38393642]
[1730468979937,0.117495,70900.0,70887.0,0.38693642]
[1730468980168,0.117495,70900.0,70887.0,0.38393642]
[1730468980632,0.117495,70900.0,70887.0,0.38693642]
[1730468980862,0.117495,70900.0,70887.0,0.39093642]
[1730468981372,0.18225402,70888.0,70887.0,0.38693642]
[1730468981604,0.18225402,70888.0,70887.0,0.29093642]
[1730468982715,0.18225402,70888.0,70887.0,0.28652425]
[1730468982937,0.18225402,70888.0,70887.0,0.29093636]
[1730468983397,0.18225402,70888.0,70887.0,0.39093636]
[1730468983840,0.18225402,70888.0,70887.0,0.40123958]
[1730468984061,0.18225402,70888.0,70887.0,0.39093636]
[1730468984322,0.18225402,70888.0,70887.0,0.40123958]
[1730468984757,0.18225402,70888.0,70887.0,0.602593]
[1730468984988,0.18225402,70888.0,70887.0,0.39093636]
[1730468985226,0.18225402,70888.0,70887.0,0.40123958]
[1730468985449,0.18225402,70888.0,70887.0,0.39093636]
[1730468987223,0.18225402,70888.0,70887.0,0.40123958]
[1730468987707,0.18225402,70888.0,70887.0,0.30123958]
[1730468989523,0.18225402,70888.0,70887.0,0.30127889]
[1730468990186,0.18307502,70888.0,70887.0,0.30127889]
[1730468990408,0.13895464,70888.0,70887.0,0.30127889]
[1730468993122,0.13895464,70888.0,70887.0,0.29690262]
[1730468993364,0.13895464,70888.0,70887.0,0.30131451]
[1730468993589,0.13895464,70888.0,70887.0,0.29690219]
[1730468993814,0.13895464,70888.0,70887.0,0.30131401]
[1730468999540,0.13895464,70888.0,70887.0,0.29984695]
[1730469000248,0.10718485,70888.0,70887.0,0.29984695]
[1730469000702,0.10718485,70888.0,70887.0,0.29584695]
[1730469001164,0.10718485,70888.0,70887.0,0.29284695]
[1730469001386,0.10718485,70888.0,70887.0,0.29584695]
[1730469002030,0.10718485,70888.0,70887.0,0.29748895]
[1730469002237,0.10718485,70888.0,70887.0,0.30148895]
[1730469002451,0.10718485,70888.0,70887.0,0.29707713]
[1730469002686,0.10718485,70888.0,70887.0,0.29708042]
[1730469002913,0.10718485,70888.0,70887.0,0.30149225]
[1730469003120,0.10718485,70888.0,70887.0,0.29749225]
[1730469003581,0.10718485,70888.0,70887.0,0.29849225]
[1730469004057,0.10718485,70888.0,70887.0,0.29708042]
[1730469004262,0.10718485,70888.0,70887.0,0.30149224]
[1730469006254,0.10718485,70888.0,70887.0,0.40149224]
[1730469007120,0.10718485,70888.0,70887.0,0.46337701]
[1730469007354,0.10718485,70888.0,70887.0,0.46037701]
[1730469007619,0.10718485,70888.0,70887.0,0.54958728]
[1730469008552,0.281991,70925.0,70887.0,0.54958728]
[1730469008553,2.65723528,70920.0,70903.0,0.21165664]
[1730469008772,0.8368,70930.0,70929.0,0.269216]
[1730469008773,0.39704589,70930.0,70929.0,0.269216]
[1730469008979,0.38232066,70930.0,70929.0,0.30259723]
[1730469009424,0.38232066,70930.0,70929.0,0.27959723]
[1730469009638,0.38232066,70930.0,70929.0,0.41859147]
[1730469010575,0.38232066,70930.0,70929.0,0.42300019]
[1730469010807,0.38232066,70930.0,70929.0,0.45434832]
[1730469011012,0.38232066,70930.0,70929.0,0.42611832]
[1730469011226,0.31818986,70930.0,70929.0,0.42611832]
[1730469011684,0.08,70950.0,70930.0,0.240984]
[1730469012002,0.08,70950.0,70938.0,0.240968]
[1730469012216,0.08,70950.0,70938.0,0.41571909]
[1730469012864,0.08,70950.0,70938.0,0.31571909]
[1730469013082,0.21165664,70949.0,70938.0,0.45417434]
[1730469013289,0.08,70950.0,70938.0,0.45417449]
[1730469013509,0.08,70950.0,70938.0,0.66583113]
[1730469013709,0.0195886,70939.0,70938.0,0.45617449]
[1730469014153,0.0195886,70939.0,70938.0,0.45417449]
[1730469014367,0.0195886,70939.0,70938.0,0.55417449]
[1730469014576,0.0195886,70939.0,70938.0,0.55617449]
[1730469014787,0.0195886,70939.0,70938.0,0.55417449]
[1730469014997,0.0195886,70939.0,70938.0,0.76583113]
[1730469015240,0.0195886,70939.0,70938.0,0.58946381]
[1730469015428,0.0195886,70939.0,70938.0,0.57917449]
[1730469016390,0.0195886,70939.0,70938.0,0.55617449]
[1730469016614,0.0195886,70939.0,70938.0,0.55417449]
[1730469017077,0.0195886,70939.0,70938.0,0.28583212]
[1730469017309,0.0195886,70939.0,70938.0,0.28383212]
[1730469017536,0.0130886,70939.0,70938.0,0.28383212]
[1730469017766,0.0130886,70939.0,70938.0,0.28583212]
[1730469017987,0.0130886,70939.0,70938.0,0.28383212]
[1730469018273,0.0130886,70939.0,70938.0,0.27942325]
[1730469018509,0.0130886,70939.0,70938.0,0.002]
[1730469018510,0.0914886,70939.0,70938.0,0.002]
[1730469018726,0.0914886,70939.0,70932.0,0.21888479]
[1730469018931,0.0914886,70939.0,70934.0,0.140975]
[1730469019141,0.0914886,70939.0,70935.0,0.13845525]
[1730469019610,0.281936,70938.0,70929.0,0.132]
[1730469019814,0.140972,70936.0,70931.0,0.21165664]
[1730469020022,0.2324546,70939.0,70938.0,0.002]
[1730469020219,0.2324546,70939.0,70932.0,0.13845525]
[1730469020220,0.140968,70938.0,70932.0,0.13845525]
[1730469020450,0.3734226,70939.0,70932.0,0.13845525]
[1730469020678,0.2324546,70939.0,70935.0,0.002]
[1730469020892,0.140968,70938.0,70932.0,0.27943425]
[1730469021113,0.14097,70937.0,70932.0,0.13845525]
[1730469021340,0.281949,70935.0,70932.0,0.13845525]
[1730469021566,0.140978,70933.0,70932.0,0.13845525]
[1730469021776,0.140984,70930.0,70921.0,0.21165664]
[1730469022310,0.0914886,70939.0,70938.0,0.140968]
[1730469022557,0.0914886,70939.0,70938.0,0.13845525]
[1730469022768,0.0914886,70939.0,70929.0,0.413968]
[1730469022983,0.0914886,70939.0,70930.0,0.35011189]
[1730469022984,0.281936,70938.0,70930.0,0.35011189]
[1730469023217,0.140978,70933.0,70930.0,0.35011189]
[1730469023471,0.3734246,70939.0,70931.0,0.14098]
[1730469023700,0.140971,70937.0,70935.0,0.002]
[1730469023912,0.3734246,70939.0,70935.0,0.002]
[1730469024146,0.3734246,70939.0,70932.0,0.13845525]
[1730469024147,0.14097,70937.0,70932.0,0.13845525]
[1730469024379,0.140978,70933.0,70932.0,0.13845525]
[1730469024649,0.0914886,70939.0,70932.0,0.13845525]
[1730469024876,0.140973,70936.0,70932.0,0.13845525]
[1730469025084,0.0914886,70939.0,70935.0,0.142973]
[1730469025323,0.0130886,70939.0,70938.0,0.140968]
[1730469025543,0.0130886,70939.0,70938.0,0.27942325]
[1730469027253,0.0130886,70939.0,70938.0,0.37942325]
[1730469027717,0.0130886,70939.0,70938.0,0.38142325]
[1730469028409,0.0130886,70939.0,70938.0,0.28142325]
[1730469029105,0.0130886,70939.0,70938.0,0.27942325]
[1730469030943,0.0130886,70939.0,70938.0,0.28142325]
[1730469031447,0.0130886,70939.0,70938.0,0.27942325]
[1730469031682,0.0130886,70939.0,70938.0,0.28142325]
[1730469031909,0.0130886,70939.0,70938.0,0.14467114]
[1730469032114,0.0130886,70939.0,70938.0,0.28818991]
[1730469032356,0.0130886,70939.0,70938.0,0.29018991]
[1730469032562,0.0130886,70939.0,70938.0,0.28818991]
[1730469033005,0.0130886,70939.0,70938.0,0.29018991]
[1730469034193,0.0130886,70939.0,70938.0,0.14922191]
[1730469034421,0.1540546,70939.0,70938.0,0.01076666]
[1730469034655,0.1540546,70939.0,70938.0,0.00821589]
[1730469034891,0.1540546,70939.0,70938.0,0.002]
[1730469035118,0.1540546,70939.0,70938.0,0.004]
[1730469035578,0.0130886,70939.0,70938.0,0.004]
[1730469035820,0.0130886,70939.0,70938.0,0.14245525]
[1730469036036,0.0130886,70939.0,70938.0,0.28342325]
[1730469036492,0.0130886,70939.0,70938.0,0.004]
[1730469036719,0.0130886,70939.0,70938.0,0.01018181]
[1730469036951,0.1540546,70939.0,70938.0,0.004]
[1730469037188,0.0130886,70939.0,70938.0,0.01018181]
[1730469037418,0.0130886,70939.0,70938.0,0.004]
[1730469037709,0.1540546,70939.0,70938.0,0.005646]
[1730469039325,0.3351546,70939.0,70938.0,0.005646]
[1730469039558,0.14098,70932.0,70931.0,0.001646]
[1730469039805,0.31132637,70930.0,70929.0,0.10032446]
[1730469040715,0.31032637,70930.0,70929.0,0.10032446]
[1730469040939,0.25589315,70930.0,70929.0,0.10032446]
[1730469041924,0.141045,70899.0,70898.0,0.21165664]
[1730469042151,0.25695415,70899.0,70898.0,0.21165664]
[1730469042396,0.25695415,70899.0,70898.0,0.22129921]
[1730469042646,0.11590915,70899.0,70890.0,0.21165664]
[1730469042866,0.25695615,70899.0,70898.0,0.00964257]
[1730469043084,0.25695615,70899.0,70885.0,0.01031933]
[1730469043085,0.11590915,70899.0,70885.0,0.01031933]
[1730469043340,0.11590915,70894.0,70891.0,0.21165664]
[1730469043568,0.11590915,70894.0,70890.0,0.21165664]
[1730469043569,0.14106,70892.0,70890.0,0.21165664]
[1730469043785,0.11590915,70894.0,70888.0,0.13845525]
[1730469044025,0.11590915,70890.0,70887.0,0.011642]
[1730469044237,0.141065,70889.0,70887.0,0.15009725]
[1730469044470,0.141067,70888.0,70887.0,0.011642]
[1730469044988,0.282097,70898.0,70887.0,0.15009725]
[1730469045230,0.141055,70895.0,70890.0,0.002]
[1730469045449,0.17073962,70897.0,70890.0,0.141062]
[1730469045653,0.17073962,70897.0,70889.0,0.282131]
[1730469045654,0.17073962,70897.0,70889.0,0.141065]
[1730469045894,0.141056,70894.0,70889.0,0.141065]
[1730469046098,0.141067,70888.0,70887.0,0.15009725]
[1730469046349,0.17073962,70892.0,70887.0,0.011642]
[1730469046595,0.141067,70888.0,70887.0,0.011642]
[1730469046826,0.17073962,70892.0,70887.0,0.011642]
[1730469046827,0.141065,70890.0,70887.0,0.011642]
[1730469047051,0.17073962,70892.0,70887.0,0.011642]
[1730469047270,0.141067,70888.0,70887.0,0.011642]
[1730469047910,0.25688436,70888.0,70887.0,0.011642]
[1730469048113,0.141067,70888.0,70887.0,0.013642]
[1730469048327,0.141067,70888.0,70887.0,0.011642]
[1730469048785,0.141067,70888.0,70887.0,0.013642]
[1730469049002,0.141067,70888.0,70887.0,0.011642]
[1730469049250,0.141067,70888.0,70887.0,0.013642]
[1730469050636,0.17073962,70892.0,70887.0,0.013642]
[1730469050850,0.31179862,70892.0,70887.0,0.013642]
[1730469051077,0.17073962,70892.0,70888.0,0.141067]
[1730469051303,0.17073962,70892.0,70887.0,0.013642]
[1730469051304,0.141062,70891.0,70887.0,0.013642]
[1730469051530,0.31179962,70892.0,70887.0,0.152711]
[1730469051779,0.141067,70888.0,70887.0,0.011642]
[1730469052011,0.27952225,70888.0,70887.0,0.013642]
[1730469052236,0.27952225,70888.0,70887.0,0.011642]
[1730469052669,0.27952225,70888.0,70887.0,0.013642]
[1730469052917,0.141095,70874.0,70873.0,0.21165664]
[1730469053173,0.31183462,70874.0,70873.0,0.21165664]
[1730469053419,0.141103,70870.0,70869.0,0.001642]
[1730469054116,0.17073962,70874.0,70869.0,0.001642]
[1730469054359,0.282178,70877.0,70869.0,0.001642]
[1730469054575,0.141089,70878.0,70871.0,0.282201]
[1730469054796,0.141089,70878.0,70869.0,0.001642]
[1730469054797,0.141094,70875.0,70870.0,0.141102]
[1730469055025,0.141083,70881.0,70875.0,0.141092]
[1730469055253,0.0801,70888.0,70881.0,0.141081]
[1730469055254,0.21165664,70885.0,70881.0,0.141081]
[1730469055476,0.21165664,70885.0,70872.0,0.282198]
[1730469055696,0.141069,70887.0,70881.0,0.141081]
[1730469055922,0.0801,70888.0,70879.0,0.28217]
[1730469056139,0.0801,70888.0,70870.0,0.001]
[1730469056140,0.17073962,70880.0,70870.0,0.001]
[1730469056343,0.17073962,70875.0,70873.0,0.21165664]
[1730469056792,0.17073962,70875.0,70872.0,0.001]
[1730469057044,0.17073962,70875.0,70874.0,0.141095]
[1730469057258,0.282166,70881.0,70872.0,0.001]
[1730469057259,0.17073962,70880.0,70872.0,0.142099]
[1730469057491,0.31183662,70873.0,70872.0,0.001]
[1730469058167,0.31183662,70873.0,70869.0,0.001642]
[1730469058168,0.282198,70873.0,70869.0,0.001642]
[1730469058392,0.17073962,70873.0,70870.0,0.001]
[1730469058603,0.141092,70876.0,70872.0,0.141099]
[1730469058808,0.423238,70882.0,70874.0,0.141093]
[1730469059019,0.423238,70882.0,70870.0,0.282206]
[1730469059020,0.38239626,70883.0,70872.0,0.142097]
[1730469059256,0.141089,70877.0,70873.0,0.141097]
[1730469059462,0.141084,70880.0,70869.0,0.001642]
[1730469059668,0.141091,70877.0,70872.0,0.141099]
[1730469059870,0.141091,70877.0,70870.0,0.001]
[1730469059871,0.0423268,70877.0,70870.0,0.001]
[1730469060071,0.141103,70870.0,70869.0,0.001642]
[1730469060303,0.45293762,70873.0,70869.0,0.001642]
[1730469060487,0.141103,70870.0,70869.0,0.001642]
[1730469060953,0.21165664,70882.0,70869.0,0.001642]
[1730469060954,0.17073962,70883.0,70869.0,0.001642]
[1730469061131,0.141092,70876.0,70869.0,0.001642]
[1730469061264,0.282163,70881.0,70872.0,0.001]
[1730469061475,0.141072,70886.0,70881.0,0.14108]
[1730469061686,0.0801,70888.0,70872.0,0.00282175]
[1730469061901,0.0801,70888.0,70880.0,0.282164]
[1730469062122,0.0801,70888.0,70882.0,0.141079]
[1730469062123,0.141072,70886.0,70882.0,0.141079]
[1730469062333,0.141081,70882.0,70877.0,0.141088]
[1730469062602,0.282158,70883.0,70874.0,0.28219]
[1730469062829,0.1411,70872.0,70869.0,0.002642]
[1730469063040,0.21165664,70882.0,70869.0,0.002642]
[1730469063041,0.17073962,70870.0,70869.0,0.001642]
[1730469063215,0.31184262,70870.0,70869.0,0.001642]
[1730469064553,0.39224262,70870.0,70869.0,0.001642]
[1730469064958,0.39224262,70870.0,70842.0,0.282318]
[1730469064959,0.17073962,70861.0,70848.0,0.21165664]
[1730469065284,0.1323,70862.0,70858.0,0.21165664]
[1730469065285,0.423379,70859.0,70858.0,0.21165664]
[1730469065477,0.423379,70859.0,70848.0,0.21165664]
[1730469065478,0.31187062,70856.0,70848.0,0.21165664]
[1730469065879,0.45298362,70861.0,70848.0,0.49394964]
[1730469066110,0.282218,70867.0,70857.0,0.282258]
[1730469066314,0.66459426,70873.0,70862.0,0.282237]
[1730469066532,0.38239626,70873.0,70855.0,0.002642]
[1730469066769,0.66459226,70873.0,70865.0,0.282226]
[1730469066970,0.52349426,70873.0,70867.0,0.141108]
[1730469067202,0.52349426,70873.0,70863.0,0.282234]
[1730469067203,0.38239626,70873.0,70856.0,0.13845525]
[1730469067415,0.141099,70872.0,70867.0,0.141108]
[1730469067629,0.282199,70872.0,70857.0,0.282258]
[1730469067853,0.141102,70871.0,70865.0,0.141111]
[1730469068015,0.141102,70871.0,70859.0,0.705625]
[1730469068221,0.282199,70872.0,70860.0,0.13845525]
[1730469068470,0.141102,70871.0,70864.0,0.28223]
[1730469068637,0.21165664,70872.0,70867.0,0.001]
[1730469069041,0.21165664,70872.0,70865.0,0.282225]
[1730469069042,0.141091,70876.0,70870.0,0.141101]
[1730469069270,0.220885,70880.0,70871.0,0.282202]
[1730469069485,0.0798,70880.0,70867.0,0.282218]
[1730469069739,0.0798,70880.0,70875.0,0.141091]
[1730469069934,0.0798,70880.0,70876.0,0.141091]
[1730469070348,0.0778,70891.0,70887.0,0.141068]
[1730469070561,0.0778,70891.0,70876.0,0.13845525]
[1730469070778,0.141069,70887.0,70883.0,0.141077]
[1730469070926,0.0778,70891.0,70886.0,0.141069]
[1730469071127,0.0778,70891.0,70877.0,0.21165664]
[1730469071128,0.282128,70890.0,70877.0,0.21165664]
[1730469071352,0.0778,70891.0,70877.0,0.21165664]
[1730469071560,0.218862,70891.0,70880.0,0.282167]
[1730469071820,0.218862,70891.0,70887.0,0.141068]
[1730469072272,0.0778,70891.0,70887.0,0.423208]
[1730469072472,0.0778,70891.0,70888.0,0.141066]
[1730469072729,0.218861,70891.0,70887.0,0.141069]
[1730469073256,0.0778,70891.0,70881.0,0.282163]
[1730469073447,0.282127,70890.0,70884.0,0.141074]
[1730469073711,0.141066,70889.0,70884.0,0.141074]
[1730469074127,0.141068,70888.0,70884.0,0.141074]
[1730469074557,0.141068,70888.0,70887.0,0.001]
[1730469074716,0.141068,70888.0,70882.0,0.282159]
[1730469074717,0.141068,70888.0,70884.0,0.141075]
[1730469074924,0.141066,70889.0,70885.0,0.141073]
[1730469075136,0.141068,70888.0,70885.0,0.141073]
[1730469075531,0.141068,70888.0,70884.0,0.001]
[1730469075532,0.282138,70888.0,70884.0,0.001]
[1730469075730,0.14107,70887.0,70884.0,0.142075]
[1730469075928,0.141071,70886.0,70882.0,0.141078]
[1730469076137,0.282131,70889.0,70883.0,0.141076]
[1730469076359,0.282131,70889.0,70884.0,0.141074]
[1730469076360,0.141068,70888.0,70884.0,0.141074]
[1730469076576,0.141068,70888.0,70887.0,0.001]
[1730469076776,0.0778,70891.0,70887.0,0.001]
[1730469077150,0.141067,70888.0,70887.0,0.001]
[1730469077765,0.141067,70888.0,70883.0,0.141077]
[1730469078169,0.141072,70886.0,70882.0,0.142079]
[1730469078382,0.282151,70884.0,70878.0,0.21165664]
[1730469078605,0.141089,70877.0,70876.0,0.001646]
[1730469078838,0.282175,70878.0,70876.0,0.001646]
[1730469079052,0.141089,70877.0,70876.0,0.001646]
[1730469079255,0.31182862,70877.0,70876.0,0.001646]
[1730469080136,0.31182862,70877.0,70866.0,0.21165664]
[1730469080137,0.141109,70867.0,70866.0,0.21165664]
[1730469080581,0.141109,70867.0,70856.0,0.22196487]
[1730469080582,0.282246,70860.0,70856.0,0.22196487]
[1730469080788,0.282243,70861.0,70856.0,0.22196487]
[1730469080789,0.28225,70859.0,70856.0,0.22196487]
[1730469081044,0.28225,70859.0,70852.0,0.141137]
[1730469081045,0.141129,70857.0,70852.0,0.141137]
[1730469081258,0.141131,70856.0,70853.0,0.01030823]
[1730469081474,0.28223,70864.0,70852.0,0.01035563]
[1730469081748,0.28223,70864.0,70856.0,0.141131]
[1730469081948,0.141124,70860.0,70856.0,0.141131]
[1730469082187,0.141124,70860.0,70856.0,0.142131]
[1730469082387,0.282227,70865.0,70856.0,0.01035563]
[1730469082592,0.21165664,70866.0,70856.0,0.01035563]
[1730469082805,0.21165664,70875.0,70861.0,0.141119]
[1730469082806,0.359316,70868.0,70861.0,0.141119]
[1730469083010,0.141109,70867.0,70863.0,0.141116]
[1730469083131,0.282203,70871.0,70861.0,0.28224]